bitfinex/quotes_SOLUSD_20240716
["timestamp","ask_amount","ask_price","bid_price","bid_amount"]
[1721134252472,6.3707,156.97,156.92,0.17]
[1721134252974,6.3703,156.98,156.92,6.5426]
[1721134253565,6.3706,156.97,156.92,0.17]
[1721134253759,6.3703,156.98,156.92,6.5426]
[1721134254977,6.3706,156.97,156.92,6.5426]
[1721134255275,20.0,156.99,156.9,22.3065]
[1721134255473,20.0,156.99,156.91,0.17]
[1721134255474,6.3712,156.96,156.91,0.17]
[1721134256151,6.3707,156.97,156.91,1.44431712]
[1721134256574,6.3707,156.97,156.91,6.5429]
[1721134256878,20.0,156.99,156.91,0.17]
[1721134256879,6.3711,156.96,156.91,0.17]
[1721134257066,6.3716,156.95,156.91,0.17]
[1721134257269,10.0,156.95,156.89,16.3038]
[1721134257482,6.3725,156.93,156.89,16.3038]
[1721134258074,6.3719,156.94,156.89,16.3038]
[1721134258275,6.3719,156.94,156.89,22.6776]
[1721134259661,20.0,156.97,156.89,22.6776]
[1721134259853,6.3715,156.95,156.9,1.27444809]
[1721134260059,6.3718,156.94,156.89,16.3038]
[1721134260479,6.3727,156.92,156.89,16.3038]
[1721134261059,6.3723,156.93,156.89,16.3038]
[1721134261460,6.3727,156.92,156.89,16.3038]
[1721134262372,16.3723,156.93,156.89,16.3038]
[1721134262579,6.3719,156.94,156.89,16.3038]
[1721134262764,6.3718,156.95,156.9,1.27460342]
[1721134263283,22.3868,156.99,156.9,1.27460342]
[1721134263284,26.4617,156.99,156.9,1.27460342]
[1721134263471,26.4617,156.99,156.89,16.3038]
[1721134263472,6.3703,156.98,156.92,6.3725]
[1721134263787,6.3706,156.97,156.92,6.3725]
[1721134263985,6.3706,156.97,156.91,23.74949942]
[1721134264176,16.3699,156.99,156.92,1.44419608]
[1721134264483,6.3703,156.98,156.93,1.27420439]
[1721134264684,20.0,156.99,156.92,6.3725]
[1721134265058,6.3706,156.97,156.91,22.4752]
[1721134265679,6.3712,156.96,156.9,6.5434]
[1721134265980,10.0,156.97,156.89,16.4738]
[1721134266181,6.371,156.96,156.9,0.17]
[1721134266402,6.371,156.96,156.9,6.713]
[1721134266569,6.371,156.96,156.9,6.543]
[1721134267093,6.371,156.96,156.91,1.27441822]
[1721134267265,10.0,156.97,156.9,0.17]
[1721134267464,10.0,156.97,156.9,16.1032]
[1721134267880,6.3707,156.97,156.91,6.3729]
[1721134268194,6.3707,156.97,156.92,6.3725]
[1721134268380,20.0,156.99,156.94,15.62]
[1721134268381,6.3703,156.98,156.94,15.62]
[1721134268586,6.3706,156.97,156.94,15.62]
[1721134268766,6.3706,156.97,156.93,15.62]
[1721134269590,20.0,156.99,156.94,15.62]
[1721134269766,6.3706,156.97,156.92,22.3037]
[1721134269962,20.0,156.99,156.93,15.62]
[1721134270491,20.0,156.99,156.94,15.62]
[1721134271386,6.3706,156.97,156.94,15.62]
[1721134271575,6.3706,156.97,156.91,22.305]
[1721134271788,6.371,156.96,156.93,15.62]
[1721134272577,10.0,156.96,156.89,22.6776]
[1721134272779,6.3713,156.96,156.9,21.9933]
[1721134273094,6.3713,156.96,156.89,16.3038]
[1721134273095,6.3715,156.95,156.91,15.62]
[1721134273459,6.3711,156.96,156.92,15.62]
[1721134274293,10.0,156.98,156.92,15.62]
[1721134274476,10.0,156.99,156.93,15.62]
[1721134274671,45.0,156.98,156.93,15.62]
[1721134274886,45.0,156.98,156.94,15.62]
[1721134275190,6.3709,156.97,156.94,15.62]
[1721134276780,16.37,156.99,156.95,16.89426299]
[1721134277084,6.3703,156.98,156.94,15.62]
[1721134277665,10.0,156.99,156.94,15.62]
[1721134278095,16.3701,156.99,156.94,15.62]
[1721134278305,10.0,156.99,156.94,15.62]
[1721134278796,10.0,156.99,156.93,15.62]
[1721134278971,10.0,156.99,156.92,15.62]
[1721134279172,6.3707,156.97,156.92,15.62]
[1721134279381,6.3707,156.97,156.93,15.62]
[1721134279811,6.371,156.96,156.91,0.17]
[1721134279998,6.371,156.96,156.92,15.62]
[1721134280215,10.0,156.95,156.89,32.2378]
[1721134280498,10.0,156.95,156.89,31.9238]
[1721134280698,6.3727,156.92,156.89,16.3038]
[1721134281194,51.372,156.94,156.89,16.3038]
[1721134281388,10.0,156.93,156.89,16.3038]
[1721134282091,6.3729,156.92,156.89,16.3038]
[1721134282693,6.3729,156.92,156.87,15.62]
[1721134282902,51.3721,156.94,156.88,21.9942]
[1721134283398,6.3722,156.93,156.87,7.64932355]
[1721134283572,6.3726,156.92,156.88,15.62]
[1721134283775,6.3723,156.93,156.88,15.62]
[1721134284289,51.3719,156.94,156.88,21.9942]
[1721134284469,51.3719,156.94,156.89,15.62]
[1721134284669,10.0,156.95,156.89,21.9938]
[1721134284879,16.3722,156.93,156.86,15.9372]
[1721134285081,6.3718,156.94,156.88,21.9939]
[1721134285271,16.3718,156.94,156.89,15.62]
[1721134285471,10.0,156.96,156.88,6.3739]
[1721134285472,10.0,156.92,156.88,15.62]
[1721134285678,16.3727,156.92,156.88,15.62]
[1721134285904,16.3727,156.92,156.87,15.62]
[1721134286277,10.0,156.94,156.88,21.9941]
[1721134286476,45.0,156.93,156.88,21.9941]
[1721134286986,16.3714,156.96,156.9,6.3732]
[1721134287189,16.3714,156.96,156.9,21.9932]
[1721134287500,6.3706,156.97,156.91,21.993]
[1721134288695,6.371,156.96,156.91,21.993]
[1721134288995,6.371,156.96,156.91,37.5055]
[1721134289193,16.3699,156.99,156.94,15.62]
[1721134289998,6.3703,156.98,156.93,15.62]
[1721134290300,6.3711,156.96,156.92,6.4301]
[1721134291283,6.3715,156.95,156.91,15.5125]
[1721134292889,6.3719,156.94,156.91,15.5125]
[1721134293486,16.3715,156.95,156.91,15.5125]
[1721134293694,45.0,156.94,156.91,15.5125]
[1721134295205,45.0,156.94,156.89,22.3078]
[1721134295414,51.3719,156.94,156.89,22.3078]
[1721134295914,45.0,156.94,156.89,22.3078]
[1721134296130,6.3711,156.96,156.9,6.3731]
[1721134296281,51.3711,156.96,156.9,6.3731]
[1721134296613,6.3719,156.94,156.89,15.934]
[1721134297191,16.3715,156.95,156.89,22.3077]
[1721134297702,6.3715,156.95,156.89,22.3077]
[1721134297899,10.0,156.93,156.88,6.395]
[1721134298205,16.3724,156.93,156.87,22.4642]
[1721134298789,16.3724,156.93,156.87,16.0898]
[1721134298790,6.3726,156.92,156.87,16.0898]
[1721134298992,16.3724,156.93,156.87,22.4644]
[1721134300609,6.3728,156.92,156.87,16.0898]
[1721134300909,16.373,156.91,156.87,16.0898]
[1721134302119,6.3728,156.92,156.87,16.0898]
[1721134302419,6.3718,156.94,156.88,7.64902952]
[1721134302598,10.0,156.94,156.87,22.4644]
[1721134302800,6.373,156.91,156.87,16.0898]
[1721134302985,6.3737,156.9,156.87,16.0898]
[1721134304106,6.3732,156.91,156.87,16.0898]
[1721134304690,10.0,156.92,156.87,16.0898]
[1721134305011,16.2677,156.96,156.87,32.0261]
[1721134305221,6.3721,156.94,156.88,1.27462322]
[1721134305386,6.3714,156.95,156.89,6.3738]
[1721134306091,6.3719,156.94,156.89,6.3738]
[1721134306812,6.3719,156.94,156.88,7.64875226]
[1721134308217,6.3724,156.93,156.88,1.27455226]
[1721134308516,6.3727,156.92,156.87,38.4007]
[1721134308708,25.9271,156.97,156.87,16.0898]
[1721134308709,6.3731,156.91,156.87,16.0898]
[1721134308910,6.3737,156.9,156.87,16.0898]
[1721134309108,6.3736,156.9,156.87,16.0898]
[1721134310001,6.3736,156.9,156.83,15.5707]
[1721134310002,6.3752,156.86,156.83,15.5707]
[1721134310218,10.0,156.9,156.83,15.5707]
[1721134310398,6.3747,156.87,156.83,15.5707]
[1721134311600,6.3744,156.88,156.83,15.5707]
[1721134312220,51.374,156.89,156.83,23.22205673]
[1721134312426,6.3743,156.88,156.83,16.84575673]
[1721134312626,6.3739,156.89,156.83,23.22195673]
[1721134312816,10.0,156.94,156.84,1.44489687]
[1721134313022,5.39566078,156.96,156.84,1.44489687]
[1721134313023,10.0,156.96,156.85,0.17]
[1721134313198,16.6459,156.98,156.87,22.5925]
[1721134313403,16.6459,156.98,156.89,15.2302]
[1721134313619,16.6459,156.98,156.9,1.27448191]
[1721134313820,10.0,156.96,156.9,1.27448191]
[1721134314001,10.0,156.96,156.89,15.2302]
[1721134314201,10.0,156.96,156.9,1.27450875]
[1721134314507,6.3715,156.95,156.9,1.27450875]
[1721134316230,6.3719,156.94,156.9,1.27450875]
[1721134316804,6.3723,156.93,156.89,15.2302]
[1721134317419,6.3727,156.92,156.89,15.2302]
[1721134318104,6.3723,156.93,156.89,15.2302]
[1721134318529,6.3719,156.94,156.89,15.2302]
[1721134318709,6.3719,156.94,156.9,1.44453886]
[1721134318910,6.3715,156.95,156.9,1.44453886]
[1721134319108,6.372,156.94,156.89,15.2302]
[1721134319727,6.372,156.94,156.9,1.27442944]
[1721134320729,6.3722,156.93,156.89,15.2302]
[1721134321229,6.3719,156.94,156.9,1.27452535]
[1721134321414,6.3715,156.95,156.9,1.27452535]
[1721134321739,6.3715,156.95,156.9,7.64792535]
[1721134321910,6.3715,156.95,156.9,1.27452535]
[1721134322629,6.3715,156.95,156.9,7.64792535]
[1721134322830,6.3715,156.95,156.91,0.17]
[1721134323020,6.3715,156.95,156.91,1.44430274]
[1721134323219,6.3707,156.97,156.91,7.81720274]
[1721134323434,6.3707,156.97,156.92,0.17]
[1721134324317,6.3699,156.99,156.93,22.3837]
[1721134324517,6.3699,156.99,156.94,1.61398116]
[1721134324715,6.3695,157.0,156.94,7.98578116]
[1721134325038,6.3708,156.97,156.93,22.3837]
[1721134325230,10.0,157.01,156.93,22.3837]
[1721134325231,15.9238,157.0,156.93,22.3837]
[1721134325428,6.3706,156.97,156.93,22.3837]
[1721134325945,6.3711,156.96,156.93,22.3837]
[1721134326533,6.3714,156.95,156.93,22.3837]
[1721134326751,6.3718,156.94,156.93,16.0531]
[1721134326963,6.3715,156.95,156.93,16.0531]
[1721134327326,6.3718,156.94,156.93,16.0531]
[1721134328159,6.3724,156.93,156.89,21.8205]
[1721134328952,6.3719,156.94,156.89,21.8205]
[1721134330047,16.3716,156.95,156.89,28.1943]
[1721134330256,10.0,156.97,156.9,1.27450386]
[1721134330627,10.0,156.98,156.9,1.27450386]
[1721134330949,51.3709,156.97,156.91,6.3729]
[1721134331252,10.0,156.99,156.91,6.3729]
[1721134331253,10.0,156.99,156.92,7.64689797]
[1721134331424,6.3706,156.98,156.93,1.27426159]
[1721134331630,6.3707,156.97,156.91,22.3051]
[1721134332036,6.371,156.96,156.91,15.9321]
[1721134332382,6.3706,156.97,156.92,1.27435166]
[1721134332540,6.3703,156.98,156.93,1.27430344]
[1721134333535,6.3707,156.97,156.93,1.27430344]
[1721134334132,10.0,156.97,156.9,0.34]
[1721134334337,6.3717,156.95,156.9,0.34]
[1721134334553,10.0,156.97,156.89,21.8205]
[1721134334856,6.3719,156.94,156.89,21.8205]
[1721134336365,6.3723,156.93,156.89,21.8205]
[1721134336568,6.372,156.94,156.89,21.8205]
[1721134336770,10.0,156.95,156.89,15.4024]
[1721134337069,6.3725,156.93,156.89,15.4024]
[1721134337670,6.3727,156.92,156.89,15.4024]
[1721134337847,6.3734,156.91,156.89,15.4024]
[1721134338048,6.3727,156.92,156.89,15.4024]
[1721134339380,51.3732,156.91,156.89,15.4024]
[1721134340254,6.3735,156.9,156.85,38.7987]
[1721134340580,6.374,156.89,156.85,16.3402]
[1721134341858,6.3735,156.9,156.85,16.3402]
[1721134342070,61.3731,156.91,156.85,22.7156]
[1721134342260,51.3731,156.91,156.85,23.99052181]
[1721134342479,51.3731,156.91,156.86,1.27488658]
[1721134342654,61.3731,156.91,156.86,1.27488658]
[1721134342861,61.3731,156.91,156.85,22.7156]
[1721134343881,6.3735,156.9,156.85,16.3402]
[1721134344375,51.3732,156.91,156.86,1.27488816]
[1721134344578,51.3732,156.91,156.85,22.7156]
[1721134345660,61.3732,156.91,156.85,22.7156]
[1721134346070,51.3732,156.91,156.85,22.7156]
[1721134346760,6.3735,156.9,156.85,16.3402]
[1721134347087,6.3742,156.89,156.85,16.3402]
[1721134347259,6.3747,156.87,156.85,16.3402]
[1721134348370,10.0,156.89,156.85,16.3402]
[1721134348371,6.3744,156.88,156.85,16.3402]
[1721134349581,6.3748,156.87,156.85,16.3402]
[1721134350992,6.3744,156.88,156.85,16.3402]
[1721134353198,16.3739,156.89,156.85,16.3402]
[1721134353376,55.0,156.91,156.85,16.3402]
[1721134353580,45.0,156.91,156.86,1.27489245]
[1721134353785,6.3733,156.91,156.86,1.27489245]
[1721134353999,10.0,156.95,156.87,6.3746]
[1721134354300,6.3727,156.92,156.88,1.27465926]
[1721134354597,16.3727,156.92,156.87,15.9365]
[1721134354894,6.3731,156.91,156.86,6.3749]
[1721134355274,6.3735,156.9,156.85,16.5102]
[1721134355475,6.3735,156.9,156.85,16.3402]
[1721134355785,6.3745,156.88,156.85,16.3402]
[1721134355988,10.0,156.9,156.85,16.3402]
[1721134356811,45.0,156.89,156.85,16.3402]
[1721134356987,6.3745,156.88,156.85,16.3402]
[1721134357387,6.3739,156.89,156.85,16.3402]
[1721134357599,20.0,156.92,156.86,6.375]
[1721134357808,6.3739,156.89,156.85,16.3402]
[1721134358005,6.3735,156.9,156.85,16.3402]
[1721134358210,6.3732,156.91,156.85,23.99047651]
[1721134358415,6.3735,156.9,156.85,17.61507651]
[1721134358578,6.3735,156.9,156.85,16.3402]
[1721134358782,6.3731,156.91,156.86,6.3748]
[1721134359008,16.3727,156.92,156.86,6.3748]
[1721134359698,6.373,156.91,156.85,22.7155]
[1721134359903,6.3735,156.9,156.85,16.3402]
[1721134360101,6.3739,156.89,156.85,16.3402]
[1721134360798,6.3736,156.9,156.85,16.3402]
[1721134361111,10.0,156.94,156.85,23.99047806]
[1721134361112,6.3731,156.91,156.85,23.99047806]
[1721134361309,6.3731,156.91,156.86,1.27481409]
[1721134361517,6.3731,156.91,156.85,23.99040885]
[1721134361715,6.3731,156.91,156.85,22.7156]
[1721134362008,6.3731,156.91,156.86,1.27480548]
[1721134362213,6.3731,156.91,156.85,22.7156]
[1721134362599,6.3731,156.91,156.86,1.27477274]
[1721134364221,6.3731,156.91,156.85,22.7156]
[1721134364387,6.3735,156.9,156.85,22.7156]
[1721134364588,6.3739,156.89,156.85,16.3402]
[1721134364808,15.9301,156.94,156.85,16.3402]
[1721134364809,6.3743,156.88,156.85,16.3402]
[1721134367188,10.0,156.93,156.85,16.3402]
[1721134367393,10.0,156.93,156.86,15.64]
[1721134367594,10.0,156.93,156.86,22.0149]
[1721134367905,6.3731,156.91,156.86,15.64]
[1721134368109,6.3731,156.91,156.87,1.27475494]
[1721134368794,6.3718,156.95,156.89,22.0138]
[1721134368993,6.3718,156.94,156.9,1.27450243]
[1721134369416,6.3725,156.93,156.9,1.27450243]
[1721134370116,6.3725,156.93,156.89,1.27453644]
[1721134370319,10.0,156.97,156.89,1.27453929]
[1721134370320,10.0,156.94,156.89,1.27453929]
[1721134370524,6.3735,156.9,156.85,16.3402]
[1721134371608,6.3742,156.89,156.85,16.3402]
[1721134371814,25.93,156.94,156.85,16.3402]
[1721134372189,6.3737,156.9,156.85,16.3402]
[1721134372394,6.3732,156.91,156.85,22.7156]
[1721134372995,6.3735,156.9,156.85,16.3402]
[1721134373195,6.3735,156.9,156.85,22.7156]
[1721134373799,6.3735,156.9,156.85,16.3402]
[1721134374119,6.3746,156.88,156.85,16.3402]
[1721134374305,6.3739,156.89,156.85,16.3402]
[1721134374907,6.3744,156.88,156.85,16.3402]
[1721134375320,10.0,156.88,156.85,16.3402]
[1721134375530,10.0,156.88,156.81,16.138]
[1721134375719,6.3754,156.86,156.81,16.138]
[1721134376225,6.3757,156.85,156.81,16.138]
[1721134376405,10.0,156.88,156.81,16.138]
[1721134377109,6.375,156.87,156.81,22.515]
[1721134378117,6.3751,156.86,156.81,16.138]
[1721134378519,6.3747,156.87,156.81,22.5151]
[1721134378716,25.9343,156.9,156.81,16.138]
[1721134379031,45.0,156.89,156.81,16.138]
[1721134380108,6.3748,156.87,156.81,22.5151]
[1721134380324,6.3747,156.87,156.82,1.44517283]
[1721134380530,6.3743,156.88,156.83,1.274995]
[1721134380735,6.3743,156.88,156.82,6.5467]
[1721134380914,10.0,156.9,156.81,32.0801]
[1721134381116,6.3748,156.87,156.82,1.44511487]
[1721134381422,6.3748,156.87,156.82,0.17]
[1721134381625,6.3748,156.87,156.82,1.44501251]
[1721134381937,6.3752,156.86,156.82,0.17]
[1721134382140,6.3752,156.86,156.82,1.27509133]
[1721134382327,6.3752,156.86,156.83,1.27509629]
[1721134383033,25.9357,156.88,156.81,16.138]
[1721134383534,45.0,156.87,156.81,16.138]
[1721134383734,6.3761,156.84,156.81,16.138]
[1721134383942,6.3766,156.83,156.81,16.138]
[1721134384111,6.3767,156.82,156.81,16.138]
[1721134384446,6.3768,156.82,156.77,15.2641]
[1721134384946,6.3771,156.81,156.77,15.2641]
[1721134385435,6.3768,156.82,156.77,15.2641]
[1721134385640,6.3771,156.81,156.77,15.2641]
[1721134385805,6.3768,156.82,156.78,1.27552675]
[1721134386823,6.3768,156.82,156.77,15.2641]
[1721134387145,6.3768,156.82,156.78,1.27548162]
[1721134387851,0.5,156.85,156.79,0.17]
[1721134388018,6.3763,156.84,156.79,1.4452992]
[1721134388340,6.3756,156.85,156.8,1.27529962]
[1721134388536,6.376,156.84,156.79,0.17]
[1721134388749,6.3764,156.83,156.79,0.34]
[1721134388925,6.3764,156.83,156.79,0.17]
[1721134389124,6.3759,156.84,156.79,0.17]
[1721134389324,6.3759,156.84,156.79,1.44527627]
[1721134389532,10.5,156.86,156.79,0.34]
[1721134389731,10.5,156.86,156.79,0.17]
[1721134390056,6.3761,156.84,156.79,0.17]
[1721134390223,6.8763,156.83,156.79,0.17]
[1721134390423,6.8763,156.83,156.78,15.9451]
[1721134390619,6.3763,156.83,156.77,21.9828]
[1721134390848,6.376,156.84,156.78,6.5483]
[1721134391651,6.3763,156.83,156.78,0.17]
[1721134392041,6.3763,156.83,156.77,37.7589]
[1721134392042,0.5,156.82,156.77,37.7589]
[1721134392245,6.8768,156.82,156.77,15.2641]
[1721134392421,6.3772,156.81,156.77,15.2641]
[1721134392827,6.8768,156.82,156.77,16.53961087]
[1721134393256,6.3776,156.8,156.77,15.2641]
[1721134395057,0.5,156.79,156.77,15.2641]
[1721134395357,6.3783,156.78,156.77,15.2641]
[1721134395654,6.878,156.79,156.77,15.2641]
[1721134396035,6.3784,156.78,156.73,15.6465]
[1721134396355,0.5,156.78,156.73,22.0268]
[1721134396558,0.5,156.78,156.74,1.27582113]
[1721134396758,0.5,156.78,156.73,22.0268]
[1721134396932,0.5,156.78,156.74,1.27580938]
[1721134397131,10.5,156.81,156.74,7.65560938]
[1721134397440,10.5,156.81,156.73,38.1471]
[1721134397750,6.3783,156.78,156.73,31.7668]
[1721134397959,0.5,156.77,156.73,31.7668]
[1721134398860,0.5,156.78,156.74,1.2758284]
[1721134399039,10.5,156.79,156.74,7.6557284]
[1721134399357,10.5,156.79,156.74,6.3799]
[1721134399528,0.5,156.79,156.74,6.3799]
[1721134399859,0.5,156.79,156.75,6.3794]
[1721134400035,16.8776,156.8,156.74,7.65567331]
[1721134400232,0.5,156.79,156.74,7.65567331]
[1721134401256,6.3783,156.78,156.73,38.147]
[1721134401642,0.5,156.77,156.73,31.7668]
[1721134401841,6.8788,156.77,156.73,15.6465]
[1721134402039,6.3788,156.77,156.73,15.6465]
[1721134402269,6.8792,156.76,156.73,15.6465]
[1721134402862,10.5,156.79,156.73,15.6465]
[1721134403038,45.0,156.78,156.73,15.6465]
[1721134403240,10.5,156.77,156.73,15.6465]
[1721134403560,6.8792,156.76,156.73,15.6465]
[1721134403744,6.8788,156.77,156.73,15.6465]
[1721134403931,10.5,156.81,156.73,15.6465]
[1721134404132,6.3786,156.78,156.74,1.27583023]
[1721134404358,6.3788,156.77,156.74,1.27583023]
[1721134404538,6.8793,156.76,156.73,15.6465]
[1721134404743,15.9441,156.8,156.73,15.6465]
[1721134404744,6.3787,156.77,156.73,15.6465]
[1721134404957,6.3791,156.76,156.73,16.92237019]
[1721134405136,6.3791,156.76,156.73,15.6465]
[1721134405869,6.3796,156.75,156.72,0.8524118]
[1721134406168,0.5,156.75,156.72,0.8524118]
[1721134406338,6.3802,156.74,156.72,0.8524118]
[1721134407045,6.3803,156.73,156.72,0.8524118]
[1721134407668,6.3801,156.74,156.72,0.8524118]
[1721134408470,6.8803,156.73,156.72,0.8524118]
[1721134408771,6.3803,156.73,156.72,0.8524118]
[1721134408978,6.8803,156.73,156.72,0.8524118]
[1721134409268,51.8803,156.73,156.72,0.8524118]
[1721134410263,61.8803,156.73,156.72,0.8524118]
[1721134411365,62.0503,156.73,156.72,0.8524118]
[1721134411579,62.2203,156.73,156.72,0.8524118]
[1721134412764,83.6385,156.73,156.72,1.18e-05]
[1721134413165,10.0,156.63,156.62,16.3059]
[1721134413473,6.3836,156.65,156.62,16.3059]
[1721134413673,0.5,156.64,156.62,16.3059]
[1721134414181,0.5,156.64,156.58,15.5698]
[1721134414381,45.5,156.64,156.58,16.84687456]
[1721134414567,51.884,156.64,156.58,22.73317456]
[1721134414761,51.884,156.64,156.59,6.3859]
[1721134414963,0.5,156.63,156.59,6.3859]
[1721134415182,0.5,156.63,156.58,38.69907456]
[1721134415369,51.8845,156.63,156.58,31.0356]
[1721134416493,10.0,156.62,156.58,15.0698]
[1721134416789,6.8854,156.61,156.58,15.0698]
[1721134417093,6.8858,156.6,156.58,15.0698]
[1721134417265,6.3864,156.59,156.57,0.8524118]
[1721134417471,0.5,156.58,156.57,0.8524118]
[1721134417771,6.8865,156.58,156.57,0.8524118]
[1721134417968,0.5,156.58,156.57,0.8524118]
[1721134418487,16.8865,156.58,156.57,0.8524118]
[1721134418792,61.3865,156.58,156.57,0.8524118]
[1721134418978,16.3865,156.58,156.57,0.8524118]
[1721134419497,61.8865,156.58,156.57,0.8524118]
[1721134421913,0.5,156.58,156.57,0.8524118]
[1721134422204,15.9614,156.63,156.57,0.8524118]
[1721134422205,6.8863,156.59,156.57,0.8524118]
[1721134422376,10.5,156.61,156.57,0.8524118]
[1721134422576,0.5,156.62,156.57,16.9666118]
[1721134423084,10.0,156.61,156.57,16.9666118]
[1721134423270,6.3861,156.59,156.57,16.9666118]
[1721134423583,6.3861,156.59,156.57,0.8524118]
[1721134423786,0.5,156.58,156.57,0.8524118]
[1721134423988,10.0,156.63,156.57,0.8524118]
[1721134423989,0.5,156.6,156.57,0.8524118]
[1721134424585,6.3849,156.62,156.57,2.12968557]
[1721134424784,0.5,156.62,156.58,7.66357464]
[1721134424992,6.8844,156.63,156.58,1.27717464]
[1721134425192,6.3849,156.62,156.57,0.8524118]
[1721134425497,6.3849,156.62,156.58,0.17]
[1721134425693,6.3857,156.6,156.57,0.8524118]
[1721134425898,0.5,156.61,156.57,0.8524118]
[1721134426077,6.3862,156.59,156.57,0.8524118]
[1721134426283,16.8865,156.58,156.57,0.8524118]
[1721134426685,16.3865,156.58,156.57,0.8524118]
[1721134428284,61.3865,156.58,156.57,0.8524118]
[1721134430193,16.3865,156.58,156.57,0.8524118]
[1721134430399,61.3865,156.58,156.57,0.8524118]
[1721134430993,6.8862,156.59,156.57,0.8524118]
[1721134431415,0.5,156.59,156.57,0.8524118]
[1721134431591,0.5,156.61,156.57,0.8524118]
[1721134431788,6.8854,156.61,156.57,0.8524118]
[1721134432121,6.3857,156.6,156.57,0.8524118]
[1721134432293,16.3845,156.63,156.57,7.2392118]
[1721134432500,0.5,156.62,156.57,0.8524118]
[1721134432698,0.5,156.62,156.57,7.2392118]
[1721134432918,0.5,156.62,156.58,1.44710633]
[1721134433120,10.0,156.65,156.58,7.83350633]
[1721134433121,6.884,156.64,156.58,7.83350633]
[1721134433499,6.384,156.64,156.58,7.83350633]
[1721134433910,6.3844,156.63,156.58,1.44710633]
[1721134434300,6.3849,156.62,156.58,0.17]
[1721134434507,6.3853,156.61,156.57,0.8524118]
[1721134435196,10.0,156.61,156.57,0.8524118]
[1721134435395,0.5,156.6,156.57,0.8524118]
[1721134435619,6.3865,156.58,156.57,0.8524118]
[1721134436122,6.8865,156.58,156.57,0.8524118]
[1721134436503,51.8865,156.58,156.57,0.8524118]
[1721134437906,6.8865,156.58,156.57,0.8524118]
[1721134438310,6.3862,156.59,156.57,0.8524118]
[1721134438507,6.3865,156.58,156.57,0.8524118]
[1721134440014,51.3865,156.58,156.57,0.8524118]
[1721134440627,6.8861,156.59,156.57,0.8524118]
[1721134440830,6.3865,156.58,156.57,0.8524118]
[1721134441336,51.3865,156.58,156.57,0.8524118]
[1721134441936,6.3865,156.58,156.57,0.8524118]
[1721134442105,51.3865,156.58,156.57,0.8524118]
[1721134442522,6.3865,156.58,156.57,0.8524118]
[1721134443516,0.5,156.6,156.57,0.8524118]
[1721134443828,6.3863,156.59,156.57,0.8524118]
[1721134444333,6.8857,156.6,156.57,0.8524118]
[1721134444628,6.886,156.6,156.57,0.8524118]
[1721134444803,6.3864,156.59,156.57,0.8524118]
[1721134444999,16.8865,156.58,156.57,0.8524118]
[1721134445631,6.8865,156.58,156.57,0.8524118]
[1721134445934,6.3865,156.58,156.57,0.8524118]
[1721134446227,16.3865,156.58,156.57,0.8524118]
[1721134447019,61.3865,156.58,156.57,0.8524118]
[1721134447204,10.0,156.51,156.44,16.3818]
[1721134447405,0.5,156.5,156.44,16.3818]
[1721134447616,6.3905,156.49,156.44,16.3818]
[1721134447816,6.3905,156.49,156.44,17.66000788]
[1721134448016,6.3898,156.5,156.44,17.66000788]
[1721134448328,0.5,156.49,156.44,17.66000788]
[1721134448633,6.3907,156.48,156.44,17.66000788]